[Event "Chpt France Universitaire 2024"]
[Site "Bastia, France"]
[Date "2024.04.07"]
[Round "8.1"]
[White "Gatineau, Yovann"]
[Black "Rakotomaharo, Fy Antenaina"]
[Result "1-0"]
[TimeControl "15min+5s"]
[WhiteElo "2408"]
[BlackElo "2448"]

1. d4 {[%clk 00:15:05]} d5 {[%clk 00:15:05]} {[%emt 00:00:02]} 2. c4 {[%clk
00:15:05]} {[%emt 00:00:02]} e6 {[%clk 00:15:05]} {[%emt 00:00:02]} 3. Nf3
{[%clk 00:15:05]} {[%emt 00:00:04]} Nf6 {[%clk 00:15:05]} {[%emt 00:00:01]} 4.
Nc3 {[%clk 00:15:05]} {[%emt 00:00:02]} Bb4 {[%clk 00:15:05]} {[%emt 00:00:02]}
5. Bg5 {[%clk 00:15:05]} {[%emt 00:00:03]} dxc4 {[%clk 00:15:05]} {[%emt
00:00:02]} 6. e4 {[%clk 00:15:05]} {[%emt 00:00:04]} h6 {[%clk 00:15:05]}
{[%emt 00:00:02]} 7. Bxf6 {[%clk 00:15:01]} {[%emt 00:00:09]} Qxf6 {[%clk
00:15:05]} {[%emt 00:00:01]} 8. Bxc4 {[%clk 00:15:01]} {[%emt 00:00:02]} c5
{[%clk 00:15:05]} {[%emt 00:00:01]} 9. O-O {[%clk 00:14:47]} {[%emt 00:00:19]}
cxd4 {[%clk 00:15:05]} {[%emt 00:00:05]} 10. e5 {[%clk 00:14:47]} {[%emt
00:00:02]} Qd8 {[%clk 00:15:05]} {[%emt 00:00:02]} 11. Ne4 {[%clk 00:14:47]}
{[%emt 00:00:02]} O-O {[%clk 00:14:43]} {[%emt 00:00:28]} 12. Qe2 {[%clk
00:14:35]} {[%emt 00:00:17]} Nc6 {[%clk 00:14:26]} {[%emt 00:00:22]} 13. Bd3
{[%clk 00:14:00]} {[%emt 00:00:40]} Be7 {[%clk 00:14:26]} {[%emt 00:00:03]} 14.
a3 {[%clk 00:14:00]} {[%emt 00:00:02]} Qc7 {[%clk 00:10:53]} {[%emt 00:03:37]}
15. Ng3 {[%clk 00:13:01]} {[%emt 00:01:04]} Rd8 {[%clk 00:09:59]} {[%emt
00:01:00]} 16. h4 {[%clk 00:11:34]} {[%emt 00:01:32]} Rd5 {[%clk 00:06:40]}
{[%emt 00:03:24]} 17. Rfe1 {[%clk 00:11:29]} {[%emt 00:00:09]} Bd7 {[%clk
00:06:22]} {[%emt 00:00:23]} 18. Qe4 {[%clk 00:11:07]} {[%emt 00:00:27]} g6
{[%clk 00:06:22]} {[%emt 00:00:02]} 19. h5 {[%clk 00:11:04]} {[%emt 00:00:08]}
Be8 {[%clk 00:06:22]} {[%emt 00:00:03]} 20. hxg6 {[%clk 00:07:36]} {[%emt
00:03:34]} fxg6 {[%clk 00:06:22]} {[%emt 00:00:01]} 21. Nh5 {[%clk 00:06:57]}
{[%emt 00:00:43]} Nxe5 {[%clk 00:04:27]} {[%emt 00:02:00]} 22. Nxe5 {[%clk
00:06:08]} {[%emt 00:00:54]} Qxe5 {[%clk 00:03:31]} {[%emt 00:01:01]} 23. Qxe5
{[%clk 00:06:05]} {[%emt 00:00:09]} Rxe5 {[%clk 00:03:31]} {[%emt 00:00:01]} 24.
Rxe5 {[%clk 00:06:05]} {[%emt 00:00:05]} gxh5 {[%clk 00:03:31]} {[%emt
00:00:03]} 25. Rxe6 {[%clk 00:06:02]} {[%emt 00:00:07]} Bf8 {[%clk 00:03:16]}
{[%emt 00:00:21]} 26. Rc1 {[%clk 00:05:09]} {[%emt 00:00:58]} Bc6 {[%clk
00:02:57]} {[%emt 00:00:24]} 27. Be4 {[%clk 00:03:46]} {[%emt 00:01:27]} Kf7
{[%clk 00:02:39]} {[%emt 00:00:23]} 28. Re5 {[%clk 00:03:46]} {[%emt 00:00:02]}
Bg7 {[%clk 00:02:12]} {[%emt 00:00:33]} 29. Rf5+ {[%clk 00:03:32]} {[%emt
00:00:19]} Ke6 {[%clk 00:02:12]} {[%emt 00:00:01]} 30. Bd3 {[%clk 00:03:29]}
{[%emt 00:00:07]} Kd6 {[%clk 00:01:18]} {[%emt 00:01:00]} 31. Rxh5 {[%clk
00:03:25]} {[%emt 00:00:09]} Re8 {[%clk 00:01:06]} {[%emt 00:00:16]} 32. Rh4
{[%clk 00:03:01]} {[%emt 00:00:28]} Re7 {[%clk 00:00:58]} {[%emt 00:00:15]} 33.
Rg4 {[%clk 00:03:01]} {[%emt 00:00:03]} Kc7 {[%clk 00:00:10]} {[%emt 00:00:54]}
34. Kf1 {[%clk 00:02:55]} {[%emt 00:00:10]} Kb6 {[%clk 00:00:10]} {[%emt
00:00:04]} 35. Re1 {[%clk 00:02:50]} {[%emt 00:00:09]} Rc7 {[%clk 00:00:07]}
{[%emt 00:00:08]} 36. Rg6 {[%clk 00:02:42]} {[%emt 00:00:12]} a6 {[%clk
00:00:07]} {[%emt 00:00:02]} 37. Rge6 {[%clk 00:02:21]} {[%emt 00:00:25]} Bf8
{[%clk 00:00:07]} {[%emt 00:00:03]} 38. R1e4 {[%clk 00:01:55]} {[%emt
00:00:30]} Rd7 {[%clk 00:00:07]} {[%emt 00:00:04]} 39. Rf4 {[%clk 00:01:43]}
{[%emt 00:00:17]} Bg7 {[%clk 00:00:07]} {[%emt 00:00:05]} 40. Rg4 {[%clk
00:01:28]} {[%emt 00:00:20]} Ka7 {[%clk 00:00:07]} {[%emt 00:00:03]} 41. Reg6
{[%clk 00:01:28]} {[%emt 00:00:02]} Bf8 {[%clk 00:00:07]} {[%emt 00:00:02]} 42.
Rg8 {[%clk 00:01:28]} {[%emt 00:00:03]} Bc5 {[%clk 00:00:07]} {[%emt 00:00:02]}
43. b4 {[%clk 00:01:20]} {[%emt 00:00:14]} Bb6 {[%clk 00:00:07]} 44. Rh8 {[%clk
00:01:20]} {[%emt 00:00:03]} Bd5 {[%clk 00:00:06]} {[%emt 00:00:08]} 45. Rxh6
{[%clk 00:00:59]} {[%emt 00:00:25]} Rc7 {[%clk 00:00:06]} 46. Rd6 {[%clk
00:00:29]} {[%emt 00:00:35]} Bc6 {[%clk 00:00:06]} {[%emt 00:00:05]} 47. Rg8
{[%clk 00:00:29]} {[%emt 00:00:02]} Ba4 {[%clk 00:00:06]} {[%emt 00:00:02]} 48.
Rgg6 {[%clk 00:00:23]} {[%emt 00:00:09]} Rc1+ {[%clk 00:00:06]} {[%emt
00:00:02]} 49. Ke2 {[%clk 00:00:23]} {[%emt 00:00:01]} Bc7 {[%clk 00:00:06]} 50.
Rxd4 {[%clk 00:00:21]} {[%emt 00:00:07]} Ra1 {[%clk 00:00:06]} {[%emt
00:00:02]} 51. Rc4 {[%clk 00:00:21]} {[%emt 00:00:05]} Ra2+ {[%clk 00:00:06]}
{[%emt 00:00:03]} 52. Ke3 {[%clk 00:00:13]} {[%emt 00:00:13]} Bd8 {[%clk
00:00:06]} {[%emt 00:00:02]} 53. Rc3 {[%clk 00:00:13]} {[%emt 00:00:04]} Be7
{[%clk 00:00:06]} {[%emt 00:00:03]} 54. Re6 {[%clk 00:00:13]} {[%emt 00:00:04]}
Bf8 {[%clk 00:00:06]} {[%emt 00:00:01]} 55. g4 {[%clk 00:00:13]} {[%emt
00:00:03]} Bg7 {[%clk 00:00:06]} 56. Rc7 {[%clk 00:00:13]} {[%emt 00:00:02]}
Bf8 {[%clk 00:00:06]} {[%emt 00:00:02]} 57. Rf6 {[%clk 00:00:13]} {[%emt
00:00:03]} Rxa3 {[%emt 00:00:08]} 58. Rxf8 {[%clk 00:00:13]} {[%emt 00:00:01]}
Bb5 {[%clk 00:00:06]} 59. Rd8 {[%clk 00:00:13]} {[%emt 00:00:01]} Rb3 {[%clk
00:00:06]} {[%emt 00:00:01]} 60. g5 {[%clk 00:00:13]} {[%emt 00:00:04]} 1-0

[Event "Chpt France Universitaire 2024"]
[Site "Bastia, France"]
[Date "2024.04.07"]
[Round "8.2"]
[White "Roux, Baptiste"]
[Black "Dalaud, Dorian"]
[Result "0-1"]
[TimeControl "15min+5s"]
[WhiteElo "2361"]
[BlackElo "2307"]

1. e4 {[%clk 00:15:05]} {[%emt 00:00:01]} Nc6 {[%clk 00:15:05]} {[%emt
00:00:01]} 2. Nf3 {[%clk 00:15:03]} {[%emt 00:00:07]} e5 {[%clk 00:15:05]}
{[%emt 00:00:01]} 3. Bb5 {[%clk 00:15:03]} {[%emt 00:00:02]} a6 {[%clk
00:15:05]} {[%emt 00:00:02]} 4. Ba4 {[%clk 00:15:03]} {[%emt 00:00:04]} Nf6
{[%clk 00:15:05]} {[%emt 00:00:01]} 5. O-O {[%clk 00:15:03]} {[%emt 00:00:03]}
b5 {[%clk 00:15:05]} {[%emt 00:00:01]} 6. Bb3 {[%clk 00:15:03]} {[%emt
00:00:01]} Bb7 {[%clk 00:15:05]} 7. Re1 {[%clk 00:14:46]} {[%emt 00:00:22]} Bc5
{[%clk 00:15:05]} {[%emt 00:00:02]} 8. c3 {[%clk 00:14:45]} {[%emt 00:00:05]}
d6 {[%clk 00:15:05]} {[%emt 00:00:01]} 9. d4 {[%clk 00:14:42]} {[%emt
00:00:09]} Bb6 {[%clk 00:15:05]} {[%emt 00:00:02]} 10. a4 {[%clk 00:14:38]}
{[%emt 00:00:09]} h6 {[%clk 00:15:05]} {[%emt 00:00:04]} 11. Qd3 {[%clk
00:14:13]} {[%emt 00:00:29]} O-O {[%clk 00:14:00]} {[%emt 00:01:10]} 12. Nbd2
{[%clk 00:12:02]} {[%emt 00:02:16]} Re8 {[%clk 00:12:53]} {[%emt 00:01:13]} 13.
d5 {[%clk 00:11:41]} {[%emt 00:00:25]} Ne7 {[%clk 00:11:54]} {[%emt 00:01:04]}
14. Nf1 {[%clk 00:11:37]} {[%emt 00:00:08]} c6 {[%clk 00:11:31]} {[%emt
00:00:28]} 15. dxc6 {[%clk 00:11:34]} {[%emt 00:00:08]} Bxc6 {[%clk 00:11:31]}
{[%emt 00:00:04]} 16. Ng3 {[%clk 00:11:19]} {[%emt 00:00:19]} Ng4 {[%clk
00:10:59]} {[%emt 00:00:38]} 17. Re2 {[%clk 00:09:35]} {[%emt 00:01:49]} Qc7
{[%clk 00:09:49]} {[%emt 00:01:15]} 18. h3 {[%clk 00:09:33]} {[%emt 00:00:07]}
Nf6 {[%clk 00:09:49]} {[%emt 00:00:01]} 19. Nh4 {[%clk 00:08:26]} {[%emt
00:01:12]} d5 {[%clk 00:09:26]} {[%emt 00:00:28]} 20. exd5 {[%clk 00:06:17]}
{[%emt 00:02:13]} Nexd5 {[%clk 00:09:26]} {[%emt 00:00:01]} 21. Ngf5 {[%clk
00:06:09]} {[%emt 00:00:13]} e4 {[%clk 00:08:54]} {[%emt 00:00:37]} 22. Qc2
{[%clk 00:04:51]} {[%emt 00:01:23]} Qe5 {[%clk 00:05:41]} {[%emt 00:03:18]} 23.
Be3 {[%clk 00:02:08]} {[%emt 00:02:48]} Nxe3 {[%clk 00:04:41]} {[%emt
00:01:05]} 24. Nxe3 {[%clk 00:02:01]} {[%emt 00:00:12]} Bc7 {[%clk 00:02:43]}
{[%emt 00:02:03]} 25. g3 {[%clk 00:02:01]} {[%emt 00:00:02]} Bd7 {[%clk
00:02:43]} {[%emt 00:00:02]} 26. Kh2 {[%clk 00:01:28]} {[%emt 00:00:38]} Qh5
{[%clk 00:02:43]} {[%emt 00:00:01]} 27. Rd1 {[%clk 00:01:01]} {[%emt 00:00:33]}
Qxh4 {[%clk 00:02:16]} {[%emt 00:00:32]} 28. Rxd7 {[%clk 00:01:01]} {[%emt
00:00:03]} Nxd7 {[%clk 00:02:16]} {[%emt 00:00:03]} 29. Nd5 {[%clk 00:00:53]}
{[%emt 00:00:12]} Qd8 {[%clk 00:02:16]} {[%emt 00:00:01]} 30. Rxe4 {[%clk
00:00:52]} {[%emt 00:00:06]} Rxe4 {[%clk 00:01:17]} {[%emt 00:01:04]} 31. Qxe4
{[%clk 00:00:52]} {[%emt 00:00:01]} Nc5 {[%clk 00:00:42]} {[%emt 00:00:40]} 32.
Ne7+ {[%clk 00:00:28]} {[%emt 00:00:28]} Kh8 {[%clk 00:00:13]} {[%emt
00:00:34]} 0-1

[Event "Chpt France Universitaire 2024"]
[Site "Bastia, France"]
[Date "2024.04.07"]
[Round "8.3"]
[White "Baroyan, Davit"]
[Black "Budak, Rewi"]
[Result "0-1"]
[TimeControl "15min+5s"]
[WhiteElo "2118"]
[BlackElo "2112"]

1. Nf3 {[%clk 00:15:05]} {[%emt 00:00:02]} c5 {[%clk 00:15:05]} {[%emt
00:00:06]} 2. g3 {[%clk 00:15:05]} {[%emt 00:00:05]} d5 {[%clk 00:15:05]}
{[%emt 00:00:04]} 3. Bg2 {[%clk 00:15:05]} {[%emt 00:00:02]} Nc6 {[%clk
00:15:03]} {[%emt 00:00:07]} 4. d4 {[%clk 00:15:05]} {[%emt 00:00:01]} cxd4
{[%clk 00:14:35]} {[%emt 00:00:34]} 5. Nxd4 {[%clk 00:15:05]} {[%emt 00:00:01]}
Nf6 {[%clk 00:14:35]} 6. O-O {[%clk 00:14:55]} {[%emt 00:00:16]} Bg4 {[%clk
00:13:48]} {[%emt 00:00:52]} 7. Nxc6 {[%clk 00:14:16]} {[%emt 00:00:44]} bxc6
{[%clk 00:13:48]} {[%emt 00:00:03]} 8. c4 {[%clk 00:14:16]} {[%emt 00:00:03]}
Qd7 {[%clk 00:13:15]} {[%emt 00:00:37]} 9. Nc3 {[%clk 00:14:09]} {[%emt
00:00:11]} e6 {[%clk 00:12:33]} {[%emt 00:00:47]} 10. Qa4 {[%clk 00:13:48]}
{[%emt 00:00:26]} Be7 {[%clk 00:12:10]} {[%emt 00:00:28]} 11. e4 {[%clk
00:13:09]} {[%emt 00:00:45]} dxe4 {[%clk 00:07:50]} {[%emt 00:04:26]} 12. Nxe4
{[%clk 00:12:59]} {[%emt 00:00:15]} Rc8 {[%clk 00:05:28]} {[%emt 00:02:27]} 13.
Be3 {[%clk 00:12:07]} {[%emt 00:00:57]} Nxe4 {[%clk 00:05:01]} {[%emt
00:00:32]} 14. Bxe4 {[%clk 00:12:07]} {[%emt 00:00:03]} O-O {[%clk 00:02:58]}
{[%emt 00:02:09]} 15. f3 {[%clk 00:12:07]} f5 {[%clk 00:02:18]} {[%emt
00:00:45]} 16. Rad1 {[%clk 00:10:17]} {[%emt 00:01:54]} Qb7 {[%clk 00:01:58]}
{[%emt 00:00:25]} 17. fxg4 {[%clk 00:09:26]} {[%emt 00:00:56]} fxe4 {[%clk
00:01:58]} {[%emt 00:00:03]} 18. Qxa7 {[%clk 00:09:03]} {[%emt 00:00:28]} Qxa7
{[%clk 00:01:55]} {[%emt 00:00:08]} 19. Bxa7 {[%clk 00:09:03]} {[%emt
00:00:01]} Ra8 {[%clk 00:01:55]} 20. Rxf8+ {[%clk 00:08:13]} {[%emt 00:00:55]}
Bxf8 {[%clk 00:01:55]} {[%emt 00:00:04]} 21. Be3 {[%clk 00:06:59]} {[%emt
00:01:19]} Rxa2 {[%clk 00:01:55]} {[%emt 00:00:03]} 22. Rd8 {[%clk 00:06:45]}
{[%emt 00:00:19]} Kf7 {[%clk 00:01:46]} {[%emt 00:00:13]} 23. Bd4 {[%clk
00:06:45]} Ra1+ {[%clk 00:01:29]} {[%emt 00:00:22]} 24. Kf2 {[%clk 00:04:22]}
{[%emt 00:02:29]} Rd1 {[%clk 00:01:29]} {[%emt 00:00:03]} 25. Ke2 {[%clk
00:04:01]} {[%emt 00:00:26]} Rd3 {[%clk 00:01:13]} {[%emt 00:00:20]} 26. Bb6
{[%clk 00:03:37]} {[%emt 00:00:31]} Rb3 {[%clk 00:00:56]} {[%emt 00:00:21]} 27.
Bd4 {[%clk 00:03:00]} {[%emt 00:00:42]} Rd3 {[%clk 00:00:56]} 28. Bb6 {[%clk
00:01:53]} {[%emt 00:01:12]} Rb3 {[%clk 00:00:56]} {[%emt 00:00:03]} 29. Bd4
{[%clk 00:01:28]} {[%emt 00:00:30]} Rd3 {[%clk 00:00:56]} {[%emt 00:00:01]} 30.
Bb6 {[%clk 00:01:19]} {[%emt 00:00:14]} Rxd8 {[%clk 00:00:52]} {[%emt
00:00:09]} 31. Bxd8 {[%clk 00:01:19]} {[%emt 00:00:01]} Bc5 {[%clk 00:00:52]}
32. Ba5 {[%clk 00:01:13]} {[%emt 00:00:12]} Bd4 {[%clk 00:00:25]} {[%emt
00:00:32]} 33. b4 {[%clk 00:00:46]} {[%emt 00:00:33]} Ke7 {[%clk 00:00:25]}
{[%emt 00:00:01]} 34. b5 {[%clk 00:00:24]} {[%emt 00:00:27]} cxb5 {[%clk
00:00:25]} {[%emt 00:00:02]} 35. cxb5 {[%clk 00:00:24]} Kd6 {[%clk 00:00:25]}
{[%emt 00:00:01]} 36. Bb4+ {[%clk 00:00:11]} {[%emt 00:00:18]} Kc7 {[%clk
00:00:25]} {[%emt 00:00:02]} 37. Bf8 {[%clk 00:00:10]} {[%emt 00:00:06]} Kb6
{[%clk 00:00:25]} {[%emt 00:00:03]} 38. h4 {[%clk 00:00:08]} {[%emt 00:00:07]}
Kxb5 {[%clk 00:00:25]} {[%emt 00:00:02]} 39. h5 {[%clk 00:00:08]} {[%emt
00:00:02]} Kc6 {[%clk 00:00:25]} {[%emt 00:00:05]} 40. g5 {[%clk 00:00:08]}
{[%emt 00:00:02]} g6 {[%clk 00:00:25]} {[%emt 00:00:03]} 41. hxg6 {[%clk
00:00:08]} {[%emt 00:00:04]} hxg6 {[%clk 00:00:25]} 42. Bb4 {[%clk 00:00:08]}
{[%emt 00:00:06]} Kd5 {[%clk 00:00:25]} {[%emt 00:00:02]} 43. Bd2 {[%clk
00:00:08]} {[%emt 00:00:01]} Ke5 {[%clk 00:00:25]} {[%emt 00:00:02]} 44. g4
{[%clk 00:00:08]} {[%emt 00:00:02]} Kd5 {[%clk 00:00:22]} {[%emt 00:00:08]} 45.
Bc1 {[%clk 00:00:08]} {[%emt 00:00:02]} Ke5 {[%clk 00:00:22]} {[%emt 00:00:05]}
46. Bd2 {[%clk 00:00:08]} Bg1 {[%clk 00:00:22]} {[%emt 00:00:02]} 47. Bc1
{[%clk 00:00:08]} {[%emt 00:00:01]} Bh2 {[%clk 04:04:04]} {[%emt 00:00:01]} 48.
Kf2 {[%emt 00:00:07]} Bf4 {[%emt 00:00:01]} 0-1

[Event "Chpt France Universitaire 2024"]
[Site "Bastia, France"]
[Date "2024.04.07"]
[Round "8.4"]
[White "Eveno, Nathan"]
[Black "Gryshko, Vitalii"]
[Result "1/2-1/2"]
[TimeControl "15min+5s"]
[WhiteElo "2192"]
[BlackElo "2288"]

1. e4 {[%clk 00:15:05]} c5 {[%clk 00:15:05]} 2. Nf3 {[%clk 00:15:05]} d6 {[%clk
00:15:05]} {[%emt 00:00:02]} 3. Bb5+ {[%clk 00:15:04]} {[%emt 00:00:06]} Bd7
{[%clk 00:15:05]} {[%emt 00:00:05]} 4. Bxd7+ Qxd7 {[%clk 00:15:05]} 5. O-O
{[%clk 00:15:04]} {[%emt 00:00:01]} Nc6 {[%clk 00:15:05]} {[%emt 00:00:04]} 6.
c3 {[%clk 00:15:04]} {[%emt 00:00:01]} Nf6 {[%clk 00:15:05]} {[%emt 00:00:05]}
7. Re1 {[%clk 00:14:39]} {[%emt 00:00:31]} e6 {[%clk 00:15:05]} {[%emt
00:00:02]} 8. d4 {[%clk 00:14:39]} {[%emt 00:00:02]} Be7 {[%clk 00:15:02]}
{[%emt 00:00:07]} 9. d5 {[%clk 00:14:19]} {[%emt 00:00:24]} Na5 {[%clk
00:14:14]} {[%emt 00:00:51]} 10. Na3 {[%clk 00:13:50]} {[%emt 00:00:36]} b5
{[%clk 00:13:46]} {[%emt 00:00:34]} 11. dxe6 {[%emt 00:00:33]} fxe6 {[%clk
00:12:33]} {[%emt 00:01:15]} 12. e5 {[%clk 00:13:24]} {[%emt 00:00:07]} dxe5
{[%clk 00:12:33]} {[%emt 00:00:01]} 13. Qxd7+ {[%clk 00:13:24]} {[%emt
00:00:03]} Nxd7 {[%clk 00:12:23]} {[%emt 00:00:15]} 14. Nxb5 {[%clk 00:13:22]}
{[%emt 00:00:07]} Rb8 {[%clk 00:11:53]} {[%emt 00:00:35]} 15. Na3 {[%clk
00:11:25]} {[%emt 00:02:02]} Bf6 {[%clk 00:10:45]} {[%emt 00:01:13]} 16. Nd2
{[%clk 00:09:53]} {[%emt 00:01:38]} Ke7 {[%clk 00:10:34]} {[%emt 00:00:15]} 17.
Nac4 {[%clk 00:09:53]} {[%emt 00:00:02]} Nc6 {[%clk 00:08:58]} {[%emt
00:01:40]} 18. Ne4 {[%clk 00:09:41]} {[%emt 00:00:17]} h6 {[%clk 00:08:58]}
{[%emt 00:00:04]} 19. Be3 {[%clk 00:09:36]} {[%emt 00:00:10]} Rhd8 {[%clk
00:06:40]} {[%emt 00:02:22]} 20. Nxc5 {[%clk 00:08:54]} {[%emt 00:00:48]} Nxc5
{[%clk 00:06:40]} {[%emt 00:00:02]} 21. Bxc5+ {[%clk 00:08:54]} {[%emt
00:00:02]} Kf7 {[%clk 00:06:40]} 22. Nd6+ {[%clk 00:08:20]} {[%emt 00:00:39]}
Kg6 {[%clk 00:06:35]} {[%emt 00:00:10]} 23. b4 {[%clk 00:08:08]} {[%emt
00:00:18]} Be7 {[%clk 00:06:18]} {[%emt 00:00:21]} 24. Ne4 {[%clk 00:08:07]}
{[%emt 00:00:06]} Bxc5 {[%clk 00:05:32]} {[%emt 00:00:51]} 25. Nxc5 {[%clk
00:08:07]} {[%emt 00:00:02]} Rd2 {[%clk 00:05:32]} 26. Nxe6 {[%clk 00:06:35]}
{[%emt 00:01:36]} Rc2 {[%clk 00:05:16]} {[%emt 00:00:21]} 27. Rec1 {[%clk
00:05:46]} {[%emt 00:00:54]} Rb2 {[%clk 00:05:16]} {[%emt 00:00:02]} 28. Nc5
{[%clk 00:04:46]} {[%emt 00:01:05]} Rd8 {[%clk 00:05:16]} 29. Ne4 {[%clk
00:04:34]} {[%emt 00:00:17]} Ne7 {[%clk 00:05:02]} {[%emt 00:00:19]} 30. a4
{[%clk 00:04:27]} {[%emt 00:00:13]} Kf5 {[%clk 00:03:23]} {[%emt 00:01:44]} 31.
Re1 {[%clk 00:04:02]} {[%emt 00:00:29]} Ng6 {[%clk 00:02:58]} {[%emt 00:00:31]}
32. Re2 {[%clk 00:02:33]} {[%emt 00:01:34]} Rxe2 {[%clk 00:01:45]} {[%emt
00:01:19]} 33. Ng3+ {[%clk 00:02:33]} Ke6 {[%clk 00:01:45]} {[%emt 00:00:02]}
34. Nxe2 {[%clk 00:02:33]} {[%emt 00:00:02]} Rd2 {[%clk 00:01:45]} 35. Kf1
{[%clk 00:01:53]} {[%emt 00:00:45]} Kd5 {[%clk 00:01:44]} {[%emt 00:00:05]} 36.
b5 {[%clk 00:01:10]} {[%emt 00:00:49]} Kc5 {[%clk 00:01:32]} {[%emt 00:00:17]}
37. g3 {[%clk 00:01:03]} {[%emt 00:00:12]} Ne7 {[%clk 00:01:18]} {[%emt
00:00:18]} 38. Rb1 {[%clk 00:00:56]} {[%emt 00:00:13]} Nd5 {[%clk 00:01:18]}
{[%emt 00:00:03]} 39. Rc1 {[%clk 00:00:39]} {[%emt 00:00:23]} Kc4 {[%clk
00:00:43]} {[%emt 00:00:39]} 40. a5 {[%clk 00:00:15]} {[%emt 00:00:30]} Ra2
{[%clk 00:00:26]} {[%emt 00:00:22]} 41. b6 {[%clk 00:00:15]} {[%emt 00:00:01]}
axb6 {[%clk 00:00:26]} {[%emt 00:00:05]} 42. axb6 {[%clk 00:00:15]} Nxb6 {[%clk
00:00:26]} {[%emt 00:00:01]} 43. Rb1 {[%clk 00:00:15]} {[%emt 00:00:04]} Nd5
{[%clk 00:00:26]} 44. Rb7 {[%clk 00:00:15]} {[%emt 00:00:04]} Ra1+ {[%clk
00:00:24]} {[%emt 00:00:07]} 45. Kg2 {[%clk 00:00:15]} {[%emt 00:00:01]} Re1
{[%clk 00:00:24]} {[%emt 00:00:03]} 46. Ng1 {[%clk 00:00:13]} {[%emt 00:00:07]}
g5 {[%clk 00:00:14]} {[%emt 00:00:15]} 47. Nf3 {[%clk 00:00:13]} {[%emt
00:00:03]} Re2 {[%clk 00:00:14]} {[%emt 00:00:02]} 48. Kf1 {[%clk 00:00:13]}
{[%emt 00:00:04]} Ra2 {[%clk 00:00:14]} {[%emt 00:00:02]} 1/2-1/2

[Event "Chpt France Universitaire 2024"]
[Site "Bastia, France"]
[Date "2024.04.07"]
[Round "8.5"]
[White "Pheng, Wissam"]
[Black "Harutyunyan, Safar"]
[Result "0-1"]
[TimeControl "15min+5s"]
[WhiteElo "1975"]
[BlackElo "2266"]

1. e4 {[%clk 00:15:05]} {[%emt 00:00:03]} c5 {[%clk 00:15:05]} {[%emt
00:00:01]} 2. b3 {[%clk 00:15:05]} Nf6 {[%clk 00:15:05]} {[%emt 00:00:02]} 3.
e5 {[%clk 00:15:05]} Nd5 {[%clk 00:15:05]} {[%emt 00:00:02]} 4. Bb2 {[%clk
00:15:05]} g6 {[%clk 00:15:02]} {[%emt 00:00:09]} 5. Qf3 {[%clk 00:15:00]}
{[%emt 00:00:10]} Nb4 {[%clk 00:15:00]} {[%emt 00:00:07]} 6. Na3 {[%clk
00:14:59]} {[%emt 00:00:06]} N8c6 {[%clk 00:14:25]} {[%emt 00:00:41]} 7. Bc4
{[%clk 00:12:34]} {[%emt 00:02:30]} e6 {[%clk 00:14:22]} {[%emt 00:00:07]} 8.
Ne2 {[%clk 00:12:02]} {[%emt 00:00:37]} Bg7 {[%clk 00:14:22]} {[%emt 00:00:02]}
9. Qg3 {[%clk 00:11:58]} {[%emt 00:00:10]} d5 {[%clk 00:14:22]} {[%emt
00:00:02]} 10. Bb5 {[%clk 00:11:54]} {[%emt 00:00:09]} a6 {[%clk 00:14:15]}
{[%emt 00:00:13]} 11. Bxc6+ {[%clk 00:11:53]} {[%emt 00:00:06]} Nxc6 {[%clk
00:14:15]} {[%emt 00:00:02]} 12. O-O {[%clk 00:11:29]} {[%emt 00:00:29]} O-O
{[%clk 00:14:15]} {[%emt 00:00:02]} 13. f4 {[%clk 00:11:13]} {[%emt 00:00:21]}
b5 {[%clk 00:14:15]} {[%emt 00:00:03]} 14. d4 {[%clk 00:10:56]} {[%emt
00:00:22]} b4 {[%clk 00:13:58]} {[%emt 00:00:22]} 15. Nb1 {[%clk 00:10:53]}
{[%emt 00:00:08]} Qb6 {[%clk 00:13:58]} {[%emt 00:00:01]} 16. Qf2 {[%clk
00:10:52]} {[%emt 00:00:06]} c4 {[%clk 00:13:54]} {[%emt 00:00:09]} 17. a3
{[%clk 00:09:35]} {[%emt 00:01:23]} cxb3 {[%clk 00:13:25]} {[%emt 00:00:34]} 18.
cxb3 {[%clk 00:09:35]} {[%emt 00:00:02]} a5 {[%clk 00:13:18]} {[%emt 00:00:11]}
19. a4 {[%clk 00:08:06]} {[%emt 00:01:34]} Ba6 {[%clk 00:13:18]} {[%emt
00:00:04]} 20. Re1 {[%clk 00:07:44]} {[%emt 00:00:27]} Rac8 {[%clk 00:13:18]}
{[%emt 00:00:04]} 21. Nd2 {[%clk 00:07:44]} {[%emt 00:00:01]} h5 {[%clk
00:13:14]} {[%emt 00:00:09]} 22. Rac1 {[%clk 00:07:29]} {[%emt 00:00:21]} Ne7
{[%clk 00:13:14]} {[%emt 00:00:05]} 23. Nf3 {[%clk 00:07:02]} {[%emt 00:00:32]}
Nf5 {[%clk 00:13:14]} {[%emt 00:00:02]} 24. Ng3 {[%clk 00:06:26]} {[%emt
00:00:41]} Nxg3 {[%clk 00:12:49]} {[%emt 00:00:30]} 25. hxg3 {[%clk 00:06:26]}
{[%emt 00:00:04]} Bd3 {[%clk 00:12:44]} {[%emt 00:00:09]} 26. Rc5 {[%clk
00:06:11]} {[%emt 00:00:21]} Rc7 {[%clk 00:12:02]} {[%emt 00:00:47]} 27. Rxc7
{[%clk 00:05:59]} {[%emt 00:00:17]} Qxc7 {[%clk 00:12:02]} {[%emt 00:00:01]} 28.
Rc1 {[%clk 00:05:59]} {[%emt 00:00:01]} Qb7 {[%clk 00:11:21]} {[%emt 00:00:46]}
29. Qd2 {[%clk 00:05:59]} {[%emt 00:00:05]} Be4 {[%clk 00:11:18]} {[%emt
00:00:07]} 30. Ng5 {[%clk 00:05:22]} {[%emt 00:00:43]} Bf5 {[%clk 00:11:18]}
{[%emt 00:00:04]} 31. Rc5 {[%clk 00:05:22]} {[%emt 00:00:05]} Qa6 {[%clk
00:10:52]} {[%emt 00:00:31]} 32. Qc1 {[%clk 00:03:21]} {[%emt 00:02:06]} Bh6
{[%clk 00:09:07]} {[%emt 00:01:50]} 33. Nf3 {[%clk 00:02:40]} {[%emt 00:00:45]}
Qd3 {[%clk 00:08:36]} {[%emt 00:00:36]} 34. Rxa5 {[%clk 00:02:06]} {[%emt
00:00:40]} Qxb3 {[%clk 00:08:34]} {[%emt 00:00:06]} 35. Kh2 {[%clk 00:01:46]}
{[%emt 00:00:25]} Bg4 {[%clk 00:07:01]} {[%emt 00:01:38]} 36. Nd2 {[%clk
00:01:38]} {[%emt 00:00:13]} Qd3 {[%clk 00:06:52]} {[%emt 00:00:12]} 37. Nf1
{[%clk 00:00:13]} {[%emt 00:01:31]} Be2 {[%clk 00:06:18]} {[%emt 00:00:39]} 38.
Kg1 {[%emt 00:00:13]} 0-1